[Event "Titled Tuesday Blitz May 16 Late 2023"]
[White "Guz, Ari"]
[Black "Goltsev, Dmitry"]
[WhiteFideId "2825759"]
[BlackFideId "24176710"]
[WhiteElo "2205"]
[BlackElo "2356"]
[Result "1/2-1/2"]
[Round "11"]
[TimeControl "180+2"]
[Date "2023.05.16"]
[WhiteClock "0:00:16"]
[BlackClock "0:00:03"]

1. Nf3 {[%clk 0:03:00]}  d5 {[%clk 0:02:59]} 2. b3 {[%clk 0:03:01]}  Nf6 {[%clk 0:02:59]} 3. Bb2 {[%clk 0:03:02]}  g6 {[%clk 0:02:59]} 4. e3 {[%clk 0:03:03]}  Bg7 {[%clk 0:03:00]} 5. d3 {[%clk 0:03:04]}  Nh5 {[%clk 0:03:00]} 6. Bxg7 {[%clk 0:03:03]}  Nxg7 {[%clk 0:03:01]} 7. Nbd2 {[%clk 0:03:03]}  O-O {[%clk 0:03:01]} 8. g3 {[%clk 0:03:03]}  c5 {[%clk 0:03:02]} 9. Bg2 {[%clk 0:03:04]}  Nc6 {[%clk 0:03:02]} 10. O-O {[%clk 0:03:04]}  e5 {[%clk 0:03:03]} 11. Qe2 {[%clk 0:03:02]}  Bg4 {[%clk 0:02:56]} 12. h3 {[%clk 0:02:55]}  Be6 {[%clk 0:02:55]} 13. c4 {[%clk 0:02:52]}  d4 {[%clk 0:02:52]} 14. Ne4 {[%clk 0:02:48]}  Qe7 {[%clk 0:02:47]} 15. Rfe1 {[%clk 0:02:43]}  f5 {[%clk 0:02:45]} 16. Ned2 {[%clk 0:02:36]}  Qf6 {[%clk 0:02:37]} 17. exd4 {[%clk 0:02:31]}  exd4 {[%clk 0:02:34]} 18. Ne5 {[%clk 0:02:28]}  Nb4 {[%clk 0:02:17]} 19. Ndf3 {[%clk 0:02:21]}  Rfe8 {[%clk 0:02:13]} 20. a3 {[%clk 0:02:21]}  Na6 {[%clk 0:02:11]} 21. b4 {[%clk 0:02:16]}  Rad8 {[%clk 0:02:01]} 22. Qb2 {[%clk 0:02:06]}  Bc8 {[%clk 0:01:51]} 23. Re2 {[%clk 0:01:55]}  g5 {[%clk 0:01:44]} 24. Rae1 {[%clk 0:01:53]}  g4 {[%clk 0:01:43]} 25. hxg4 {[%clk 0:01:10]}  fxg4 {[%clk 0:01:44]} 26. Nd2 {[%clk 0:01:10]}  h5 {[%clk 0:01:39]} 27. Nb3 {[%clk 0:01:02]}  cxb4 {[%clk 0:01:29]} 28. axb4 {[%clk 0:00:53]}  Nxb4 {[%clk 0:01:29]} 29. Qd2 {[%clk 0:00:52]}  Na6 {[%clk 0:01:13]} 30. Bd5+ {[%clk 0:00:49]}  Be6 {[%clk 0:01:09]} 31. Bxb7 {[%clk 0:00:49]}  Nc7 {[%clk 0:01:06]} 32. Bg2 {[%clk 0:00:44]}  h4 {[%clk 0:01:05]} 33. Nc6 {[%clk 0:00:43]}  Rd7 {[%clk 0:00:58]} 34. Ncxd4 {[%clk 0:00:41]}  Rxd4 {[%clk 0:00:54]} 35. Nxd4 {[%clk 0:00:39]}  Qxd4 {[%clk 0:00:55]} 36. gxh4 {[%clk 0:00:36]}  Rd8 {[%clk 0:00:41]} 37. Qg5 {[%clk 0:00:33]}  Rf8 {[%clk 0:00:24]} 38. Rxe6 {[%clk 0:00:20]}  Nxe6 {[%clk 0:00:13]} 39. Rxe6 {[%clk 0:00:21]}  Qxf2+ {[%clk 0:00:12]} 40. Kh1 {[%clk 0:00:21]}  Rf5 {[%clk 0:00:08]} 41. Re8+ {[%clk 0:00:18]}  Kh7 {[%clk 0:00:07]} 42. Be4 {[%clk 0:00:13]}  Qf1+ {[%clk 0:00:05]} 43. Kh2 {[%clk 0:00:13]}  Qf2+ {[%clk 0:00:05]} 44. Kh1 {[%clk 0:00:14]}  Qf1+ {[%clk 0:00:03]} 45. Kh2 {[%clk 0:00:14]}  Qh3+ {[%clk 0:00:03]} 46. Kg1 {[%clk 0:00:14]}  Qg3+ {[%clk 0:00:03]} 47. Kh1 {[%clk 0:00:14]}  Qh3+ {[%clk 0:00:02]} 48. Kg1 {[%clk 0:00:15]}  Qg3+ {[%clk 0:00:02]} 49. Kh1 {[%clk 0:00:15]}  Qh3+ {[%clk 0:00:03]} 50. Kg1 {[%clk 0:00:16]} 1/2-1/2


[Site "https://www.chess.com"]

[Event "Titled Tuesday Blitz May 16 Late 2023"]
[White "Pasti, Aron"]
[Black "Bitoon, Richard"]
[WhiteFideId "785857"]
[BlackFideId "5201110"]
[WhiteElo "2173"]
[BlackElo "2374"]
[Result "1-0"]
[Round "11"]
[TimeControl "180+2"]
[Date "2023.05.16"]
[WhiteClock "0:00:42"]
[BlackClock "0:00:00"]

1. e4 {[%clk 0:03:00]}  e5 {[%clk 0:03:00]} 2. Nf3 {[%clk 0:02:52]}  Nc6 {[%clk 0:03:00]} 3. Bb5 {[%clk 0:02:52]}  a6 {[%clk 0:03:01]} 4. Ba4 {[%clk 0:02:52]}  Nf6 {[%clk 0:03:01]} 5. O-O {[%clk 0:02:52]}  b5 {[%clk 0:03:02]} 6. Bb3 {[%clk 0:02:52]}  Bb7 {[%clk 0:03:03]} 7. c3 {[%clk 0:02:47]}  Bc5 {[%clk 0:03:03]} 8. d4 {[%clk 0:02:46]}  Bb6 {[%clk 0:03:03]} 9. dxe5 {[%clk 0:02:37]}  Ng8 {[%clk 0:03:02]} 10. Ng5 {[%clk 0:02:23]}  Nh6 {[%clk 0:03:01]} 11. Qh5 {[%clk 0:02:21]}  Nxe5 {[%clk 0:03:00]} 12. Bf4 {[%clk 0:02:15]}  Qf6 {[%clk 0:03:00]} 13. Bxe5 {[%clk 0:01:59]}  Qxe5 {[%clk 0:03:01]} 14. Bxf7+ {[%clk 0:01:56]}  Ke7 {[%clk 0:03:01]} 15. Bd5 {[%clk 0:01:42]}  Bxd5 {[%clk 0:03:00]} 16. exd5 {[%clk 0:01:43]}  Raf8 {[%clk 0:02:59]} 17. Nd2 {[%clk 0:01:39]}  Qxd5 {[%clk 0:02:52]} 18. Nde4 {[%clk 0:01:30]}  Kd8 {[%clk 0:02:31]} 19. Rad1 {[%clk 0:01:17]}  Qf5 {[%clk 0:02:31]} 20. Ng3 {[%clk 0:01:05]}  Qf6 {[%clk 0:02:28]} 21. Qh3 {[%clk 0:01:01]}  Nf5 {[%clk 0:01:46]} 22. Nxf5 {[%clk 0:00:58]}  Qxg5 {[%clk 0:01:46]} 23. Rxd7+ {[%clk 0:00:46]}  Kxd7 {[%clk 0:01:44]} 24. Nd4+ {[%clk 0:00:44]}  Rf5 {[%clk 0:01:12]} 25. Nxf5 {[%clk 0:00:44]}  Kc8 {[%clk 0:01:01]} 26. Nd6+ {[%clk 0:00:44]}  Kb8 {[%clk 0:00:59]} 27. Nf7 {[%clk 0:00:45]}  Bxf2+ {[%clk 0:00:56]} 28. Rxf2 {[%clk 0:00:44]}  Qxg2+ {[%clk 0:00:50]} 29. Qxg2 {[%clk 0:00:43]}  Rg8 {[%clk 0:00:01]} 30. Ne5 {[%clk 0:00:41]}  g6 {[%clk 0:00:01]} 31. Nd7+ {[%clk 0:00:41]}  Kc8 {[%clk 0:00:02]} 32. Qa8+ {[%clk 0:00:40]}  Kxd7 {[%clk 0:00:01]} 33. Qxg8 {[%clk 0:00:41]}  Kc6 {[%clk 0:00:00]} 34. Qxh7 {[%clk 0:00:42]} 1-0


[Site "https://www.chess.com"]

[Event "Titled Tuesday Blitz May 16 Late 2023"]
[White "Ivanisevic, Ivan"]
[Black "Kokoszczynski, Jan"]
[WhiteFideId "912417"]
[BlackFideId "1174460"]
[WhiteElo "2592"]
[BlackElo "2139"]
[Result "1-0"]
[Round "11"]
[TimeControl "180+2"]
[Date "2023.05.16"]
[WhiteClock "0:01:39"]
[BlackClock "0:00:22"]

1. d4 {[%clk 0:02:51]}  d5 {[%clk 0:02:59]} 2. Nf3 {[%clk 0:02:52]}  e6 {[%clk 0:02:57]} 3. Bf4 {[%clk 0:02:53]}  Nf6 {[%clk 0:02:56]} 4. e3 {[%clk 0:02:52]}  c5 {[%clk 0:02:57]} 5. Nbd2 {[%clk 0:02:50]}  Nc6 {[%clk 0:02:57]} 6. c3 {[%clk 0:02:49]}  Bd6 {[%clk 0:02:57]} 7. Bg3 {[%clk 0:02:49]}  O-O {[%clk 0:02:56]} 8. Bd3 {[%clk 0:02:50]}  Qc7 {[%clk 0:02:42]} 9. dxc5 {[%clk 0:02:44]}  Bxg3 {[%clk 0:02:41]} 10. hxg3 {[%clk 0:02:44]}  Qe7 {[%clk 0:02:13]} 11. g4 {[%clk 0:02:38]}  h6 {[%clk 0:01:56]} 12. g5 {[%clk 0:02:36]}  hxg5 {[%clk 0:01:56]} 13. Nxg5 {[%clk 0:02:33]}  g6 {[%clk 0:01:41]} 14. Qa4 {[%clk 0:01:54]}  e5 {[%clk 0:00:37]} 15. Qh4 {[%clk 0:01:51]}  Nh5 {[%clk 0:00:37]} 16. g4 {[%clk 0:01:39]}  f6 {[%clk 0:00:22]} 1-0


[Site "https://www.chess.com"]

[Event "Titled Tuesday Blitz May 16 Late 2023"]
[White "Maltsevskaya, Aleksandra"]
[Black "Deviprasath, Sharvesh"]
[WhiteFideId "24174041"]
[BlackFideId "30938228"]
[WhiteElo "2302"]
[BlackElo "2168"]
[Result "1/2-1/2"]
[Round "11"]
[TimeControl "180+2"]
[Date "2023.05.16"]
[WhiteClock "0:00:02"]
[BlackClock "0:00:21"]

1. e4 {[%clk 0:03:00]}  c5 {[%clk 0:02:58]} 2. Nf3 {[%clk 0:03:00]}  Nc6 {[%clk 0:02:56]} 3. d4 {[%clk 0:03:00]}  cxd4 {[%clk 0:02:53]} 4. Nxd4 {[%clk 0:03:01]}  Nf6 {[%clk 0:02:53]} 5. Nc3 {[%clk 0:03:01]}  d6 {[%clk 0:02:53]} 6. f3 {[%clk 0:02:57]}  g6 {[%clk 0:02:51]} 7. Be3 {[%clk 0:02:56]}  Bg7 {[%clk 0:02:52]} 8. Be2 {[%clk 0:02:55]}  O-O {[%clk 0:02:52]} 9. O-O {[%clk 0:02:56]}  d5 {[%clk 0:02:52]} 10. exd5 {[%clk 0:02:54]}  Nxd5 {[%clk 0:02:51]} 11. Nxd5 {[%clk 0:02:54]}  Qxd5 {[%clk 0:02:49]} 12. Nxc6 {[%clk 0:02:49]}  bxc6 {[%clk 0:02:37]} 13. c3 {[%clk 0:02:49]}  Rb8 {[%clk 0:02:34]} 14. Qc1 {[%clk 0:02:46]}  a5 {[%clk 0:02:27]} 15. Rd1 {[%clk 0:02:42]}  Qh5 {[%clk 0:02:18]} 16. Bf1 {[%clk 0:02:34]}  Be6 {[%clk 0:02:17]} 17. Bd4 {[%clk 0:02:31]}  a4 {[%clk 0:02:12]} 18. Bxg7 {[%clk 0:02:30]}  Kxg7 {[%clk 0:02:13]} 19. c4 {[%clk 0:02:08]}  Qe5 {[%clk 0:02:08]} 20. Rd2 {[%clk 0:02:00]}  Rfd8 {[%clk 0:02:04]} 21. Rxd8 {[%clk 0:01:59]}  Rxd8 {[%clk 0:02:03]} 22. b3 {[%clk 0:01:54]}  axb3 {[%clk 0:01:56]} 23. axb3 {[%clk 0:01:55]}  Rb8 {[%clk 0:01:54]} 24. Rb1 {[%clk 0:01:51]}  c5 {[%clk 0:01:53]} 25. Qb2 {[%clk 0:01:41]}  Kf6 {[%clk 0:01:40]} 26. Kf2 {[%clk 0:01:38]}  Bf5 {[%clk 0:01:35]} 27. Qxe5+ {[%clk 0:01:35]}  Kxe5 {[%clk 0:01:36]} 28. Re1+ {[%clk 0:01:36]}  Kd6 {[%clk 0:01:35]} 29. Rd1+ {[%clk 0:01:36]}  Ke5 {[%clk 0:01:34]} 30. Rd5+ {[%clk 0:01:35]}  Kf6 {[%clk 0:01:34]} 31. Rxc5 {[%clk 0:01:34]}  Rxb3 {[%clk 0:01:34]} 32. Rc6+ {[%clk 0:01:35]}  Be6 {[%clk 0:01:30]} 33. c5 {[%clk 0:01:27]}  Rc3 {[%clk 0:01:30]} 34. Rc7 {[%clk 0:01:21]}  Bd5 {[%clk 0:01:22]} 35. Be2 {[%clk 0:01:16]}  h5 {[%clk 0:01:13]} 36. h4 {[%clk 0:01:09]}  Ke6 {[%clk 0:01:00]} 37. Ba6 {[%clk 0:01:00]}  Rc2+ {[%clk 0:00:56]} 38. Kg3 {[%clk 0:00:57]}  Kf6 {[%clk 0:00:48]} 39. Bb5 {[%clk 0:00:55]}  e5 {[%clk 0:00:46]} 40. c6 {[%clk 0:00:47]}  Rc3 {[%clk 0:00:45]} 41. Rd7 {[%clk 0:00:46]}  Be6 {[%clk 0:00:38]} 42. Rb7 {[%clk 0:00:43]}  Bd5 {[%clk 0:00:33]} 43. Rc7 {[%clk 0:00:13]}  e4 {[%clk 0:00:30]} 44. Rd7 {[%clk 0:00:11]}  Be6 {[%clk 0:00:26]} 45. Ra7 {[%clk 0:00:08]}  exf3 {[%clk 0:00:26]} 46. gxf3 {[%clk 0:00:09]}  Bd5 {[%clk 0:00:26]} 47. c7 {[%clk 0:00:09]}  Rxf3+ {[%clk 0:00:19]} 48. Kh2 {[%clk 0:00:09]}  Rc3 {[%clk 0:00:20]} 49. Bd7 {[%clk 0:00:07]}  Be6 {[%clk 0:00:15]} 50. c8=Q {[%clk 0:00:07]}  Rxc8 {[%clk 0:00:16]} 51. Bxc8 {[%clk 0:00:07]}  Bxc8 {[%clk 0:00:16]} 52. Kg3 {[%clk 0:00:07]}  Be6 {[%clk 0:00:17]} 53. Kf4 {[%clk 0:00:08]}  Bf5 {[%clk 0:00:17]} 54. Ra6+ {[%clk 0:00:08]}  Be6 {[%clk 0:00:18]} 55. Rb6 {[%clk 0:00:08]}  Kg7 {[%clk 0:00:16]} 56. Kg5 {[%clk 0:00:09]}  Bf5 {[%clk 0:00:17]} 57. Rb5 {[%clk 0:00:06]}  Be6 {[%clk 0:00:17]} 58. Rc5 {[%clk 0:00:06]}  Bf5 {[%clk 0:00:18]} 59. Rc7 {[%clk 0:00:04]}  Be6 {[%clk 0:00:18]} 60. Kf4 {[%clk 0:00:05]}  Bf5 {[%clk 0:00:19]} 61. Ke5 {[%clk 0:00:06]}  Be6 {[%clk 0:00:20]} 62. Kd6 {[%clk 0:00:06]}  Bf5 {[%clk 0:00:20]} 63. Ke5 {[%clk 0:00:06]}  Be6 {[%clk 0:00:21]} 64. Rc6 {[%clk 0:00:06]}  Bf5 {[%clk 0:00:21]} 65. Kf4 {[%clk 0:00:07]}  Be6 {[%clk 0:00:22]} 66. Kg5 {[%clk 0:00:03]}  Bf5 {[%clk 0:00:22]} 67. Rc5 {[%clk 0:00:02]}  Be6 {[%clk 0:00:21]} 68. Rb5 {[%clk 0:00:02]}  Bf5 {[%clk 0:00:21]} 69. Ra5 {[%clk 0:00:03]}  Be6 {[%clk 0:00:22]} 70. Ra7 {[%clk 0:00:02]}  Bf5 {[%clk 0:00:21]} 1/2-1/2


[Site "https://www.chess.com"]

[Event "Titled Tuesday Blitz May 16 Late 2023"]
[White "Mendez Fortes, Eduardo Jesus"]
[Black "ElDivis"]
[WhiteFideId "3502376"]
[WhiteElo "2307"]
[BlackElo "2516"]
[Result "0-1"]
[Round "11"]
[TimeControl "180+2"]
[Date "2023.05.16"]
[WhiteClock "0:01:01"]
[BlackClock "0:00:35"]

1. e4 {[%clk 0:03:00]}  c5 {[%clk 0:02:59]} 2. Nf3 {[%clk 0:03:01]}  d6 {[%clk 0:02:59]} 3. d4 {[%clk 0:03:01]}  cxd4 {[%clk 0:02:59]} 4. Nxd4 {[%clk 0:03:02]}  Nf6 {[%clk 0:03:00]} 5. Nc3 {[%clk 0:03:03]}  g6 {[%clk 0:03:00]} 6. f3 {[%clk 0:03:03]}  Nc6 {[%clk 0:02:56]} 7. Be3 {[%clk 0:03:01]}  Bg7 {[%clk 0:02:53]} 8. Qd2 {[%clk 0:03:01]}  O-O {[%clk 0:02:53]} 9. Bc4 {[%clk 0:03:01]}  Bd7 {[%clk 0:02:52]} 10. h4 {[%clk 0:03:01]}  Rc8 {[%clk 0:02:51]} 11. Bb3 {[%clk 0:03:01]}  Ne5 {[%clk 0:02:49]} 12. O-O-O {[%clk 0:03:00]}  h5 {[%clk 0:02:49]} 13. Bh6 {[%clk 0:03:00]}  Bxh6 {[%clk 0:02:46]} 14. Qxh6 {[%clk 0:03:01]}  Rxc3 {[%clk 0:02:45]} 15. bxc3 {[%clk 0:03:02]}  Qc7 {[%clk 0:02:45]} 16. Kb1 {[%clk 0:03:00]}  Rc8 {[%clk 0:02:45]} 17. Ne2 {[%clk 0:02:48]}  a5 {[%clk 0:02:14]} 18. a4 {[%clk 0:02:41]}  b5 {[%clk 0:02:12]} 19. axb5 {[%clk 0:02:40]}  a4 {[%clk 0:02:06]} 20. Ba2 {[%clk 0:02:35]}  Bxb5 {[%clk 0:02:03]} 21. Qe3 {[%clk 0:02:31]}  Bxe2 {[%clk 0:01:36]} 22. Qxe2 {[%clk 0:02:23]}  Qxc3 {[%clk 0:01:37]} 23. Qb5 {[%clk 0:02:05]}  Nc4 {[%clk 0:00:57]} 24. Bxc4 {[%clk 0:01:42]}  Rxc4 {[%clk 0:00:58]} 25. Qg5 {[%clk 0:01:03]}  Qxc2+ {[%clk 0:00:53]} 26. Ka1 {[%clk 0:01:04]}  Qc3+ {[%clk 0:00:41]} 27. Kb1 {[%clk 0:01:01]}  Qb3+ {[%clk 0:00:41]} 28. Ka1 {[%clk 0:01:01]}  Qa3+ {[%clk 0:00:38]} 29. Kb1 {[%clk 0:01:01]}  Rb4+ {[%clk 0:00:37]} 30. Kc2 {[%clk 0:01:01]}  Rb2+ {[%clk 0:00:35]} 0-1


[Site "https://www.chess.com"]

[Event "Titled Tuesday Blitz May 16 Late 2023"]
[White "WindWhistler11"]
[Black "TimGrutter03"]
[WhiteElo "2526"]
[BlackElo "2639"]
[Result "1-0"]
[Round "11"]
[TimeControl "180+2"]
[Date "2023.05.16"]
[WhiteClock "0:00:13"]
[BlackClock "0:00:01"]

1. Nf3 {[%clk 0:03:00]}  g6 {[%clk 0:03:00]} 2. g3 {[%clk 0:03:00]}  Bg7 {[%clk 0:03:01]} 3. Bg2 {[%clk 0:02:57]}  d6 {[%clk 0:03:02]} 4. O-O {[%clk 0:02:57]}  e5 {[%clk 0:02:58]} 5. d4 {[%clk 0:02:56]}  e4 {[%clk 0:02:58]} 6. Nfd2 {[%clk 0:02:55]}  f5 {[%clk 0:02:58]} 7. e3 {[%clk 0:02:54]}  Nf6 {[%clk 0:02:57]} 8. c4 {[%clk 0:02:54]}  O-O {[%clk 0:02:57]} 9. Nc3 {[%clk 0:02:55]}  c6 {[%clk 0:02:56]} 10. b3 {[%clk 0:02:54]}  d5 {[%clk 0:02:56]} 11. a4 {[%clk 0:02:53]}  Be6 {[%clk 0:02:52]} 12. Ba3 {[%clk 0:02:53]}  Rf7 {[%clk 0:02:51]} 13. a5 {[%clk 0:02:50]}  g5 {[%clk 0:02:46]} 14. f4 {[%clk 0:02:47]}  exf3 {[%clk 0:02:45]} 15. Nxf3 {[%clk 0:02:47]}  Ne4 {[%clk 0:02:45]} 16. Nxe4 {[%clk 0:02:42]}  fxe4 {[%clk 0:02:43]} 17. Ne5 {[%clk 0:02:38]}  Bxe5 {[%clk 0:02:38]} 18. Rxf7 {[%clk 0:02:36]}  Bxf7 {[%clk 0:02:37]} 19. dxe5 {[%clk 0:02:37]}  Nd7 {[%clk 0:02:27]} 20. cxd5 {[%clk 0:02:15]}  Bxd5 {[%clk 0:02:24]} 21. Bd6 {[%clk 0:02:09]}  Qe8 {[%clk 0:02:10]} 22. Qg4 {[%clk 0:01:57]}  Nxe5 {[%clk 0:02:07]} 23. Qxg5+ {[%clk 0:01:57]}  Ng6 {[%clk 0:02:08]} 24. Rf1 {[%clk 0:01:56]}  Qd7 {[%clk 0:01:42]} 25. Rf6 {[%clk 0:01:54]}  b6 {[%clk 0:01:27]} 26. h4 {[%clk 0:01:50]}  Qg7 {[%clk 0:01:23]} 27. a6 {[%clk 0:01:35]}  Nf8 {[%clk 0:00:52]} 28. Qf4 {[%clk 0:01:26]}  Nd7 {[%clk 0:00:45]} 29. Rf5 {[%clk 0:01:24]}  Kh8 {[%clk 0:00:35]} 30. Kh2 {[%clk 0:01:17]}  Re8 {[%clk 0:00:26]} 31. Bh3 {[%clk 0:01:11]}  Qb2+ {[%clk 0:00:19]} 32. Bg2 {[%clk 0:01:09]}  Qg7 {[%clk 0:00:20]} 33. h5 {[%clk 0:01:08]}  Rg8 {[%clk 0:00:13]} 34. Bh3 {[%clk 0:01:03]}  Qb2+ {[%clk 0:00:12]} 35. Bg2 {[%clk 0:01:00]}  Qg7 {[%clk 0:00:12]} 36. Qf2 {[%clk 0:00:44]}  Be6 {[%clk 0:00:10]} 37. Rf4 {[%clk 0:00:39]}  Qg5 {[%clk 0:00:09]} 38. Bxe4 {[%clk 0:00:34]}  Qxh5+ {[%clk 0:00:10]} 39. Rh4 {[%clk 0:00:35]}  Rg5 {[%clk 0:00:03]} 40. Rxh5 {[%clk 0:00:30]}  Rxh5+ {[%clk 0:00:04]} 41. Kg2 {[%clk 0:00:29]}  Kg7 {[%clk 0:00:04]} 42. Bxc6 {[%clk 0:00:21]}  Nf6 {[%clk 0:00:04]} 43. Qb2 {[%clk 0:00:20]}  Bh3+ {[%clk 0:00:03]} 44. Kg1 {[%clk 0:00:19]}  Rf5 {[%clk 0:00:02]} 45. Be5 {[%clk 0:00:18]}  Kg6 {[%clk 0:00:02]} 46. Bxf6 {[%clk 0:00:16]}  Rxf6 {[%clk 0:00:03]} 47. Be4+ {[%clk 0:00:16]}  Kg5 {[%clk 0:00:02]} 48. Qe5+ {[%clk 0:00:15]}  Bf5 {[%clk 0:00:02]} 49. Qf4+ {[%clk 0:00:14]}  Kg6 {[%clk 0:00:01]} 50. Qg4+ {[%clk 0:00:13]} 1-0


[Site "https://www.chess.com"]

[Event "Titled Tuesday Blitz May 16 Late 2023"]
[White "QuiesPrecatio"]
[Black "Spitzl, Vinzent"]
[BlackFideId "12901253"]
[WhiteElo "2432"]
[BlackElo "2225"]
[Result "0-1"]
[Round "11"]
[TimeControl "180+2"]
[Date "2023.05.16"]
[WhiteClock "0:00:00"]
[BlackClock "0:00:06"]

1. c4 {[%clk 0:02:58]}  e6 {[%clk 0:02:59]} 2. Nc3 {[%clk 0:02:55]}  d5 {[%clk 0:03:00]} 3. cxd5 {[%clk 0:02:55]}  exd5 {[%clk 0:03:00]} 4. d4 {[%clk 0:02:56]}  Nf6 {[%clk 0:03:00]} 5. Bg5 {[%clk 0:02:56]}  Bb4 {[%clk 0:03:00]} 6. e3 {[%clk 0:02:51]}  h6 {[%clk 0:02:59]} 7. Bh4 {[%clk 0:02:51]}  O-O {[%clk 0:02:59]} 8. Bd3 {[%clk 0:02:49]}  Nbd7 {[%clk 0:02:58]} 9. Ne2 {[%clk 0:02:48]}  Re8 {[%clk 0:02:57]} 10. Qc2 {[%clk 0:02:47]}  c6 {[%clk 0:02:53]} 11. O-O {[%clk 0:02:44]}  Nf8 {[%clk 0:02:50]} 12. Rab1 {[%clk 0:02:37]}  Be7 {[%clk 0:02:37]} 13. b4 {[%clk 0:02:35]}  a6 {[%clk 0:02:37]} 14. f3 {[%clk 0:02:27]}  Bd6 {[%clk 0:02:18]} 15. Bf2 {[%clk 0:02:24]}  Qe7 {[%clk 0:02:17]} 16. a3 {[%clk 0:02:05]}  a5 {[%clk 0:02:17]} 17. Qb3 {[%clk 0:02:03]}  axb4 {[%clk 0:02:10]} 18. axb4 {[%clk 0:02:04]}  b5 {[%clk 0:02:01]} 19. Rfe1 {[%clk 0:02:00]}  Qc7 {[%clk 0:01:57]} 20. Ng3 {[%clk 0:01:50]}  h5 {[%clk 0:01:53]} 21. e4 {[%clk 0:01:35]}  h4 {[%clk 0:01:48]} 22. Nf1 {[%clk 0:01:36]}  dxe4 {[%clk 0:01:37]} 23. Nxe4 {[%clk 0:01:23]}  Nxe4 {[%clk 0:01:24]} 24. fxe4 {[%clk 0:01:20]}  h3 {[%clk 0:01:24]} 25. e5 {[%clk 0:01:13]}  hxg2 {[%clk 0:01:17]} 26. Ng3 {[%clk 0:01:07]}  Be7 {[%clk 0:01:13]} 27. Kxg2 {[%clk 0:01:07]}  Be6 {[%clk 0:01:13]} 28. Qc2 {[%clk 0:01:07]}  Ra2 {[%clk 0:01:04]} 29. Rb2 {[%clk 0:01:07]}  Rea8 {[%clk 0:01:04]} 30. Be4 {[%clk 0:01:00]}  Rxb2 {[%clk 0:00:59]} 31. Qxb2 {[%clk 0:01:01]}  Ra2 {[%clk 0:00:59]} 32. Qc3 {[%clk 0:01:01]}  Bc4 {[%clk 0:00:51]} 33. Bd3 {[%clk 0:00:47]}  Bd5+ {[%clk 0:00:40]} 34. Be4 {[%clk 0:00:46]}  Bc4 {[%clk 0:00:39]} 35. Bd3 {[%clk 0:00:46]}  Bxd3 {[%clk 0:00:38]} 36. Qxd3 {[%clk 0:00:47]}  Ne6 {[%clk 0:00:38]} 37. Qe4 {[%clk 0:00:28]}  Qd7 {[%clk 0:00:35]} 38. Kg1 {[%clk 0:00:24]}  Ng5 {[%clk 0:00:28]} 39. e6 {[%clk 0:00:08]}  Qxe6 {[%clk 0:00:14]} 40. Qxe6 {[%clk 0:00:06]}  fxe6 {[%clk 0:00:11]} 41. Re2 {[%clk 0:00:03]}  Rxe2 {[%clk 0:00:09]} 42. Nxe2 {[%clk 0:00:04]}  Bxb4 {[%clk 0:00:10]} 43. Kg2 {[%clk 0:00:04]}  Kf7 {[%clk 0:00:10]} 44. Be3 {[%clk 0:00:04]}  Ne4 {[%clk 0:00:09]} 45. Kf3 {[%clk 0:00:05]}  Nf6 {[%clk 0:00:09]} 46. Nf4 {[%clk 0:00:05]}  Bd6 {[%clk 0:00:09]} 47. Nd3 {[%clk 0:00:05]}  Nd5 {[%clk 0:00:08]} 48. Bg1 {[%clk 0:00:04]}  Nb4 {[%clk 0:00:06]} 49. Nf2 {[%clk 0:00:03]}  Na6 {[%clk 0:00:05]} 50. Ne4 {[%clk 0:00:03]}  Be7 {[%clk 0:00:05]} 51. Be3 {[%clk 0:00:02]}  Nb4 {[%clk 0:00:05]} 52. Bc1 {[%clk 0:00:02]}  Nd5 {[%clk 0:00:05]} 53. Bb2 {[%clk 0:00:03]}  Nf6 {[%clk 0:00:03]} 54. Nf2 {[%clk 0:00:02]}  Bd6 {[%clk 0:00:04]} 55. h3 {[%clk 0:00:02]}  Ke7 {[%clk 0:00:04]} 56. Nd3 {[%clk 0:00:03]}  Kd7 {[%clk 0:00:04]} 57. Bc3 {[%clk 0:00:03]}  Kc7 {[%clk 0:00:04]} 58. Bd2 {[%clk 0:00:03]}  Nd5 {[%clk 0:00:04]} 59. Ke4 {[%clk 0:00:04]}  Kb6 {[%clk 0:00:04]} 60. Be1 {[%clk 0:00:03]}  b4 {[%clk 0:00:04]} 61. Nc1 {[%clk 0:00:02]}  Kb5 {[%clk 0:00:04]} 62. Kd3 {[%clk 0:00:02]}  Ka4 {[%clk 0:00:05]} 63. Kc4 {[%clk 0:00:02]}  Ne3+ {[%clk 0:00:04]} 64. Kd3 {[%clk 0:00:03]}  Nd5 {[%clk 0:00:03]} 65. Kc4 {[%clk 0:00:03]}  Nb6+ {[%clk 0:00:04]} 66. Kd3 {[%clk 0:00:03]}  b3 {[%clk 0:00:04]} 67. Bc3 {[%clk 0:00:03]}  Nd5 {[%clk 0:00:04]} 68. Bb2 {[%clk 0:00:03]}  Ba3 {[%clk 0:00:05]} 69. Bxa3 {[%clk 0:00:02]}  Kxa3 {[%clk 0:00:05]} 70. Nxb3 {[%clk 0:00:00]}  Kxb3 {[%clk 0:00:06]} 0-1


[Site "https://www.chess.com"]

[Event "Titled Tuesday Blitz May 16 Late 2023"]
[White "Baskakov, Egor"]
[Black "Perske, Thore"]
[WhiteFideId "24197866"]
[BlackFideId "12902195"]
[WhiteElo "2225"]
[BlackElo "2336"]
[Result "1-0"]
[Round "11"]
[TimeControl "180+2"]
[Date "2023.05.16"]
[WhiteClock "0:01:48"]
[BlackClock "0:00:00"]

1. e4 {[%clk 0:03:00]}  c5 {[%clk 0:02:48]} 2. Nf3 {[%clk 0:03:00]}  d6 {[%clk 0:02:46]} 3. d4 {[%clk 0:02:58]}  cxd4 {[%clk 0:02:46]} 4. Nxd4 {[%clk 0:02:59]}  Nf6 {[%clk 0:02:47]} 5. Nc3 {[%clk 0:02:59]}  a6 {[%clk 0:02:47]} 6. a4 {[%clk 0:03:00]}  g6 {[%clk 0:02:37]} 7. g3 {[%clk 0:02:59]}  Bg7 {[%clk 0:02:38]} 8. Bg2 {[%clk 0:03:00]}  O-O {[%clk 0:02:38]} 9. h3 {[%clk 0:02:59]}  Bd7 {[%clk 0:02:23]} 10. O-O {[%clk 0:02:58]}  Nc6 {[%clk 0:02:23]} 11. Nde2 {[%clk 0:02:58]}  Rb8 {[%clk 0:02:16]} 12. Be3 {[%clk 0:02:57]}  b5 {[%clk 0:02:16]} 13. axb5 {[%clk 0:02:57]}  axb5 {[%clk 0:02:16]} 14. Nd5 {[%clk 0:02:58]}  Nxd5 {[%clk 0:02:09]} 15. exd5 {[%clk 0:02:59]}  Ne5 {[%clk 0:02:09]} 16. b3 {[%clk 0:02:59]}  Qc8 {[%clk 0:01:10]} 17. Kh2 {[%clk 0:02:58]}  f5 {[%clk 0:01:03]} 18. Ra7 {[%clk 0:02:52]}  Rb7 {[%clk 0:01:03]} 19. Rxb7 {[%clk 0:02:52]}  Qxb7 {[%clk 0:01:03]} 20. Nd4 {[%clk 0:02:52]}  Rc8 {[%clk 0:00:59]} 21. Qd2 {[%clk 0:02:52]}  Qc7 {[%clk 0:00:56]} 22. f4 {[%clk 0:02:50]}  Nf7 {[%clk 0:00:54]} 23. Nc6 {[%clk 0:02:49]}  Bxc6 {[%clk 0:00:52]} 24. dxc6 {[%clk 0:02:50]}  e6 {[%clk 0:00:51]} 25. c4 {[%clk 0:02:50]}  bxc4 {[%clk 0:00:50]} 26. bxc4 {[%clk 0:02:50]}  Nd8 {[%clk 0:00:49]} 27. Rb1 {[%clk 0:02:31]}  Nxc6 {[%clk 0:00:48]} 28. Rb6 {[%clk 0:02:26]}  Qd7 {[%clk 0:00:33]} 29. Qd1 {[%clk 0:02:18]}  Bf8 {[%clk 0:00:26]} 30. Ra6 {[%clk 0:02:10]}  Be7 {[%clk 0:00:23]} 31. Qa4 {[%clk 0:02:06]}  Nb8 {[%clk 0:00:21]} 32. Qxd7 {[%clk 0:02:06]}  Nxd7 {[%clk 0:00:21]} 33. Ra7 {[%clk 0:02:06]}  Rd8 {[%clk 0:00:21]} 34. Bc6 {[%clk 0:02:06]}  Nb8 {[%clk 0:00:22]} 35. Bb5 {[%clk 0:02:06]}  Kf8 {[%clk 0:00:20]} 36. Bb6 {[%clk 0:02:04]}  Rc8 {[%clk 0:00:20]} 37. Bc7 {[%clk 0:01:57]}  h5 {[%clk 0:00:14]} 38. Kg2 {[%clk 0:01:57]}  Kf7 {[%clk 0:00:13]} 39. Kf3 {[%clk 0:01:57]}  Kf8 {[%clk 0:00:13]} 40. Ke2 {[%clk 0:01:57]}  h4 {[%clk 0:00:09]} 41. gxh4 {[%clk 0:01:54]}  Bxh4 {[%clk 0:00:04]} 42. Bxd6+ {[%clk 0:01:53]}  Kg8 {[%clk 0:00:04]} 43. c5 {[%clk 0:01:51]}  Bd8 {[%clk 0:00:00]} 44. Ra8 {[%clk 0:01:48]} 1-0


[Site "https://www.chess.com"]